fUST/lending_fUST_20251002
["ID","MTS","AMOUNT","RATE_DAILY","PERIOD"]
[388752972,1759348253816,-791.91,0.0002,2]
[388752973,1759348253826,-500.0,0.0002,2]
[388752974,1759348253835,-500.0,0.0002,2]
[388752975,1759348253845,-500.0,0.0002,2]
[388752976,1759348253855,-1388.66,0.0002,2]
[388752977,1759348253865,-500.0,0.0002,2]
[388752978,1759348253874,-400.0,0.0002,2]
[388752979,1759348253885,-1140.33,0.0002,2]
[388752980,1759348253895,-339.19669334,0.0002,2]
[388752981,1759348253905,-500.0,0.0002,2]
[388752982,1759348253915,-500.0,0.0002,2]
[388752983,1759348253924,-500.0,0.0002,2]
[388752984,1759348253934,-500.0,0.0002,2]
[388752985,1759348253943,-500.0,0.0002,2]
[388752986,1759348253953,-500.0,0.0002,2]
[388752987,1759348253962,-1000.0,0.00020021,2]
[388752988,1759348253972,-1000.0,0.00020021,2]
[388752989,1759348253982,-592.76219767,0.00020021,2]
[388752990,1759348253991,-296.90833631,0.00020021,2]
[388752991,1759348254006,-285.55,0.00020071,2]
[388752992,1759348254015,-2533.39,0.00020168,2]
[388752993,1759348254025,-285.55,0.00020171,2]
[388752994,1759348254034,-151.0,0.000202,3]
[388752995,1759348254045,-798.5814752,0.00020268,2]
[388752996,1759348254055,-1500.0,0.00020268,2]
[388752997,1759348254064,-1500.0,0.00020268,2]
[388752998,1759348254073,-1500.0,0.00020268,2]
[388752999,1759348254086,-1500.0,0.00020268,2]
[388753000,1759348254095,-1500.0,0.00020268,2]
[388753001,1759348254107,-1130.89369699,0.00020268,2]
[388753002,1759348254116,-1500.0,0.00020268,2]
[388753003,1759348254126,-1500.0,0.00020268,2]
[388753004,1759348254135,-1500.0,0.00020268,2]
[388753005,1759348254145,-1500.0,0.00020268,2]
[388753006,1759348254154,-1500.0,0.00020268,2]
[388753007,1759348254164,-1500.0,0.00020268,2]
[388753008,1759348254174,-500.0,0.00020273,2]
[388753009,1759348254183,-500.0,0.00020273,2]
[388753010,1759348254193,-380.0,0.00020273,2]
[388753011,1759348254202,-500.0,0.00020273,2]
[388753012,1759348254212,-500.0,0.00020273,2]
[388753013,1759348254221,-480.0,0.00020273,2]
[388753014,1759348254231,-395.32,0.00020273,2]
[388753015,1759348254240,-271.61065171,0.00020273,2]
[388753016,1759348254250,-500.0,0.00020273,2]
[388753017,1759348254260,-500.0,0.00020273,2]
[388753018,1759348254270,-500.0,0.00020273,2]
[388753019,1759348254279,-500.0,0.00020273,2]
[388753020,1759348254289,-500.0,0.00020273,2]
[388753021,1759348254299,-500.0,0.00020273,2]
[388753022,1759348254308,-500.0,0.00020273,2]
[388753023,1759348254318,-500.0,0.00020273,2]
[388753024,1759348254327,-500.0,0.00020273,2]
[388753025,1759348254336,-440.0,0.00020273,2]
[388753026,1759348254345,-500.0,0.00020273,2]
[388753027,1759348254355,-500.0,0.00020273,2]
[388753028,1759348254364,-500.0,0.00020273,2]
[388753029,1759348254373,-500.0,0.00020273,2]
[388753030,1759348254382,-500.0,0.00020273,2]
[388753031,1759348254391,-500.0,0.00020273,2]
[388753032,1759348254400,-500.0,0.00020273,2]
[388753033,1759348254409,-500.0,0.00020273,2]
[388753034,1759348254418,-500.0,0.00020273,2]
[388753035,1759348254428,-500.0,0.00020273,2]
[388753036,1759348254437,-500.0,0.00020273,2]
[388753037,1759348254446,-500.0,0.00020273,2]
[388753038,1759348254455,-500.0,0.00020273,2]
[388753039,1759348254465,-500.0,0.00020273,2]
[388753040,1759348254473,-500.0,0.00020273,2]
[388753041,1759348254483,-500.0,0.00020273,2]
[388753042,1759348254491,-308.53366544,0.00020273,2]
[388753043,1759348254501,-500.0,0.00020273,2]
[388753044,1759348254510,-500.0,0.00020273,2]
[388753045,1759348254519,-913.55,0.00020273,2]
[388753046,1759348254528,-500.0,0.00020273,2]
[388753047,1759348254537,-500.0,0.00020273,2]
[388753048,1759348254546,-500.0,0.00020273,2]
[388753049,1759348254555,-510.51,0.00020273,2]
[388753050,1759348254564,-500.0,0.00020273,2]
[388753051,1759348254573,-500.0,0.00020273,2]
[388753052,1759348254583,-500.0,0.00020273,2]
[388753053,1759348254592,-500.0,0.00020273,2]
[388753054,1759348254601,-500.0,0.00020273,2]
[388753055,1759348254610,-227.81248999,0.00020273,2]
[388753056,1759348254619,-500.0,0.00020273,2]
[388753057,1759348254628,-500.0,0.00020273,2]
[388753058,1759348254637,-500.0,0.00020273,2]
[388753059,1759348254646,-500.0,0.00020273,2]
[388753060,1759348254655,-781.46,0.00020273,2]
[388753061,1759348254664,-500.0,0.00020273,2]
[388753062,1759348254673,-500.0,0.00020273,2]
[388753063,1759348254759,-834.52,0.00020273,2]
[388753064,1759348254776,-500.0,0.00020273,2]
[388753065,1759348254785,-500.0,0.00020273,2]
[388753066,1759348254795,-251.92,0.00020273,2]
[388753067,1759348254804,-500.0,0.00020273,2]
[388753068,1759348254814,-500.0,0.00020273,2]
[388753069,1759348254823,-500.0,0.00020273,2]
[388753070,1759348254832,-500.0,0.00020273,2]
[388753071,1759348254842,-500.0,0.00020273,2]
[388753072,1759348254852,-500.0,0.00020273,2]
[388753073,1759348254861,-500.0,0.00020273,2]
[388753074,1759348254870,-638.01,0.00020273,2]
[388753075,1759348254880,-500.0,0.00020273,2]
[388753076,1759348254889,-500.0,0.00020273,2]
[388753077,1759348254898,-500.0,0.00020273,2]
[388753078,1759348254908,-500.0,0.00020273,2]
[388753079,1759348254917,-500.0,0.00020273,2]
[388753080,1759348254927,-500.0,0.00020273,2]
[388753081,1759348254937,-500.0,0.00020273,2]
[388753082,1759348254947,-817.94,0.00020273,2]
[388753083,1759348254957,-500.0,0.00020273,2]
[388753084,1759348254966,-500.0,0.00020273,2]
[388753085,1759348254976,-530.02,0.00020273,2]
[388753086,1759348254985,-500.0,0.00020273,2]
[388753087,1759348254995,-1197.27,0.00020273,2]
[388753088,1759348255007,-1072.82,0.00020273,2]
[388753089,1759348255016,-500.0,0.00020273,2]
[388753090,1759348255027,-1043.95,0.00020273,2]
[388753091,1759348255037,-500.0,0.00020273,2]
[388753092,1759348255046,-420.0,0.00020273,2]
[388753093,1759348255055,-500.0,0.00020273,2]
[388753094,1759348255065,-500.0,0.00020273,2]
[388753095,1759348255074,-487.73,0.00020273,2]
[388753096,1759348255083,-500.0,0.00020273,2]
[388753097,1759348255092,-500.0,0.00020273,2]
[388753098,1759348255102,-500.0,0.00020273,2]
[388753099,1759348255111,-320.0,0.00020273,2]
[388753100,1759348255120,-500.0,0.00020273,2]
[388753101,1759348255130,-500.0,0.00020273,2]
[388753102,1759348255139,-500.0,0.00020273,2]
[388753103,1759348255148,-996.21,0.00020273,2]
[388753104,1759348255158,-500.0,0.00020273,2]
[388753105,1759348255167,-500.0,0.00020273,2]
[388753106,1759348255178,-576.82,0.00020273,2]
[388753107,1759348255187,-500.0,0.00020273,2]
[388753108,1759348255197,-500.0,0.00020273,2]
[388753109,1759348255206,-500.0,0.00020273,2]
[388753110,1759348255215,-2174.11,0.00020273,2]
[388753111,1759348255224,-500.0,0.00020273,2]
[388753112,1759348255233,-591.35,0.00020273,2]
[388753113,1759348255242,-500.0,0.00020273,2]
[388753114,1759348255252,-1689.91,0.00020273,2]
[388753115,1759348255261,-282.65825812,0.00020273,2]
[388753116,1759348255271,-500.0,0.00020273,2]
[388753117,1759348255281,-500.0,0.00020273,2]
[388753118,1759348255291,-500.0,0.00020273,2]
[388753119,1759348255301,-500.0,0.00020273,2]
[388753120,1759348255310,-500.0,0.00020273,2]
[388753121,1759348255319,-500.0,0.00020273,2]
[388753122,1759348255328,-500.0,0.00020273,2]
[388753123,1759348255338,-440.0,0.00020273,2]
[388753124,1759348255347,-4256.27,0.00020273,2]
[388753125,1759348255356,-500.0,0.00020273,2]
[388753126,1759348255365,-500.0,0.00020273,2]
[388753127,1759348255375,-500.0,0.00020273,2]
[388753128,1759348255383,-500.0,0.00020273,2]
[388753129,1759348255393,-500.0,0.00020273,2]
[388753130,1759348255402,-500.0,0.00020273,2]
[388753131,1759348255411,-500.0,0.00020273,2]
[388753132,1759348255421,-500.0,0.00020273,2]
[388753133,1759348255430,-500.0,0.00020273,2]
[388753134,1759348255439,-500.0,0.00020273,2]
[388753135,1759348255449,-500.0,0.00020273,2]
[388753136,1759348255459,-500.0,0.00020273,2]
[388753137,1759348255468,-956.54,0.00020273,2]
[388753138,1759348255476,-500.0,0.00020273,2]
[388753139,1759348255485,-500.0,0.00020273,2]
[388753140,1759348255495,-500.0,0.00020273,2]
[388753141,1759348255504,-500.0,0.00020273,2]
[388753142,1759348255512,-1404.42,0.00020273,2]
[388753143,1759348255522,-513.72855784,0.00020273,2]
[388753144,1759348255531,-500.0,0.00020273,2]
[388753145,1759348255541,-500.0,0.00020273,2]
[388753146,1759348255550,-500.0,0.00020273,2]
[388753147,1759348255559,-872.07,0.00020273,2]
[388753148,1759348255568,-500.0,0.00020273,2]
[388753149,1759348255577,-500.0,0.00020273,2]
[388753150,1759348255586,-500.0,0.00020273,2]
[388753151,1759348255595,-974.89,0.00020273,2]
[388753152,1759348255604,-732.65,0.00020273,2]
[388753153,1759348255613,-812.54,0.00020273,2]
[388753154,1759348255623,-500.0,0.00020273,2]
[388753155,1759348255633,-500.0,0.00020273,2]
[388753156,1759348255642,-629.04,0.00020273,2]
[388753157,1759348255651,-206.89,0.00020273,2]
[388753158,1759348255660,-500.0,0.00020273,2]
[388753159,1759348255670,-500.0,0.00020273,2]
[388753160,1759348255679,-546.41,0.00020273,2]
[388753161,1759348255688,-500.0,0.00020273,2]
[388753162,1759348255697,-500.0,0.00020273,2]
[388753163,1759348255706,-500.0,0.00020273,2]
[388753164,1759348255715,-500.0,0.00020273,2]
[388753165,1759348255724,-500.0,0.00020273,2]
[388753166,1759348255733,-500.0,0.00020273,2]
[388753167,1759348255742,-501.68,0.00020273,2]
[388753168,1759348255751,-500.0,0.00020273,2]
[388753169,1759348255760,-502.83,0.00020273,2]
[388753170,1759348255769,-500.0,0.00020273,2]
[388753171,1759348255778,-500.0,0.00020273,2]
[388753172,1759348255787,-500.0,0.00020273,2]
[388753173,1759348255796,-310.94527968,0.00020273,2]
[388753174,1759348255805,-1277.46,0.00020273,2]
[388753175,1759348255815,-500.0,0.00020273,2]
[388753176,1759348255824,-500.0,0.00020273,2]
[388753177,1759348255833,-552.96,0.00020273,2]
[388753178,1759348255842,-544.33147788,0.00020273,2]
[388753179,1759348255851,-500.0,0.00020273,2]
[388753180,1759348255861,-500.0,0.00020273,2]
[388753181,1759348255870,-500.0,0.00020273,2]
[388753182,1759348255879,-500.0,0.00020273,2]
[388753183,1759348255888,-500.0,0.00020273,2]
[388753184,1759348255898,-500.0,0.00020273,2]
[388753185,1759348255907,-500.0,0.00020273,2]
[388753186,1759348255916,-500.0,0.00020273,2]
[388753187,1759348255925,-500.0,0.00020273,2]
[388753188,1759348255935,-2223.37,0.00020273,2]
[388753189,1759348255944,-500.0,0.00020273,2]
[388753190,1759348255953,-500.0,0.00020273,2]
[388753191,1759348255962,-698.72,0.00020273,2]
[388753192,1759348255971,-500.0,0.00020273,2]
[388753193,1759348255980,-500.0,0.00020273,2]
[388753194,1759348255990,-813.06,0.00020273,2]
[388753195,1759348256000,-725.57,0.00020273,2]
[388753196,1759348256012,-677.05,0.00020273,2]
[388753197,1759348256021,-460.0,0.00020273,2]
[388753198,1759348256031,-500.0,0.00020273,2]
[388753199,1759348256041,-500.0,0.00020273,2]
[388753200,1759348256050,-500.0,0.00020273,2]
[388753201,1759348256059,-500.0,0.00020273,2]
[388753202,1759348256068,-500.0,0.00020273,2]
[388753203,1759348256080,-500.0,0.00020273,2]
[388753204,1759348256089,-2312.62,0.00020273,2]
[388753205,1759348256098,-500.0,0.00020273,2]
[388753206,1759348256107,-500.0,0.00020273,2]
[388753207,1759348256117,-500.0,0.00020273,2]
[388753208,1759348256126,-500.0,0.00020273,2]
[388753209,1759348256136,-500.0,0.00020273,2]
[388753210,1759348256145,-500.0,0.00020273,2]
[388753211,1759348256154,-500.0,0.00020273,2]
[388753212,1759348256163,-500.0,0.00020273,2]
[388753213,1759348256172,-791.91,0.00020273,2]
[388753214,1759348256182,-632.55651801,0.00020273,2]
[388753215,1759348256191,-340.0,0.00020273,2]
[388753216,1759348256201,-500.0,0.00020273,2]
[388753217,1759348256210,-1388.66,0.00020273,2]
[388753218,1759348256219,-500.0,0.00020273,2]
[388753219,1759348256228,-1140.33,0.00020273,2]
[388753220,1759348256237,-500.0,0.00020273,2]
[388753221,1759348256245,-500.0,0.00020273,2]
[388753222,1759348256254,-500.0,0.00020273,2]
[388753223,1759348256263,-500.0,0.00020273,2]
[388753224,1759348256272,-428.01063634,0.00020273,2]
[388753225,1759348256282,-500.0,0.00020273,2]
[388753226,1759348256291,-151.0,0.00020274,2]
[388753227,1759348256300,-151.0,0.00020274,2]
[388753228,1759348256310,-458.0,0.00020274,2]
[388753229,1759348256319,-151.0,0.00020274,2]
[388753230,1759348256329,-500.0,0.00020274,2]
[388753231,1759348256338,-1000.0,0.00020321,2]
[388753232,1759348256433,-500.0,0.00020321,2]
[388753233,1759348256443,-561.17950999,0.00020321,2]
[388753234,1759348256453,-1000.0,0.00020321,2]
[388753235,1759348256463,-1000.0,0.00020321,2]
[388753236,1759348256472,-1000.0,0.00020321,2]
[388753237,1759348256481,-1000.0,0.00020321,2]
[388753238,1759348256490,-910.98424207,0.00020321,2]
[388753239,1759348256500,-1000.0,0.00020321,2]
[388753240,1759348256509,-521.44036848,0.00020321,2]
[388753241,1759348256517,-1000.0,0.00020321,2]
[388753242,1759348256527,-1000.0,0.00020321,2]
[388753243,1759348256536,-1000.0,0.00020321,2]
[388753244,1759348256545,-500.0,0.00020321,2]
[388753245,1759348256554,-1000.0,0.00020321,2]
[388753246,1759348256563,-500.0,0.00020321,2]
[388753247,1759348256572,-1000.0,0.00020321,2]
[388753248,1759348256581,-1000.0,0.00020321,2]
[388753249,1759348256591,-500.73488065,0.00020321,2]
[388753250,1759348256600,-1000.0,0.00020321,2]
[388753251,1759348256609,-500.0,0.00020321,2]
[388753252,1759348256619,-1000.0,0.00020321,2]
[388753253,1759348256628,-500.0,0.00020321,2]
[388753254,1759348256638,-154.450076,0.00020321,2]
[388753255,1759348256647,-1584.08462179,0.00020322,2]
[388753256,1759348256656,-595.26,0.00020438,3]
[388753257,1759348256665,-260.0,0.0002044,2]
[388753258,1759348256675,-1309.8054382,0.00020514,2]
[388753259,1759348256685,-500.0,0.00020521,2]
[388753260,1759348256696,-1000.0,0.00020521,2]
[388753261,1759348256706,-500.0,0.00020521,2]
[388753262,1759348256715,-1000.0,0.00020521,2]
[388753263,1759348256725,-1000.0,0.00020521,2]
[388753264,1759348256734,-413.1103713,0.00020521,2]
[388753265,1759348256743,-500.0,0.00020521,2]
[388753266,1759348256753,-1000.0,0.00020521,2]
[388753267,1759348256762,-1054.84096934,0.00020521,2]
[388753268,1759348256771,-1000.0,0.00020521,2]
[388753269,1759348256781,-160.0,0.00020536,2]
[388753270,1759348256790,-160.0,0.00020536,2]
[388753271,1759348256800,-160.0,0.00020536,2]
[388753272,1759348256809,-160.0,0.00020536,2]
[388753273,1759348256819,-160.0,0.00020536,2]
[388753274,1759348256829,-500.0,0.00020547,2]
[388753275,1759348256838,-460.0,0.00020547,2]
[388753276,1759348256847,-500.0,0.00020547,2]
[388753277,1759348256856,-500.0,0.00020547,2]
[388753278,1759348256865,-500.0,0.00020547,2]
[388753279,1759348256874,-500.0,0.00020547,2]
[388753280,1759348256884,-500.0,0.00020547,2]
[388753281,1759348256893,-500.0,0.00020547,2]
[388753282,1759348256902,-270.59,0.00020547,2]
[388753283,1759348256912,-380.0,0.00020547,2]
[388753284,1759348256922,-500.0,0.00020547,2]
[388753285,1759348256931,-500.0,0.00020547,2]
[388753286,1759348256940,-500.0,0.00020547,2]
[388753287,1759348256950,-500.0,0.00020547,2]
[388753288,1759348256959,-500.0,0.00020547,2]
[388753289,1759348256969,-500.0,0.00020547,2]
[388753290,1759348256978,-545.8063914,0.00020547,2]
[388753291,1759348256987,-500.0,0.00020547,2]
[388753292,1759348256999,-381.44,0.00020547,2]
[388753293,1759348257008,-507.85327465,0.00020547,2]
[388753294,1759348257017,-500.0,0.00020547,2]
[388753295,1759348257027,-602.85402588,0.00020547,2]
[388753296,1759348257037,-500.0,0.00020547,2]
[388753297,1759348257047,-500.0,0.00020547,2]
[388753298,1759348257056,-500.0,0.00020547,2]
[388753299,1759348257066,-273.95438043,0.00020547,2]
[388753300,1759348257075,-500.0,0.00020547,2]
[388753301,1759348257085,-500.0,0.00020547,2]
[388753302,1759348257094,-500.0,0.00020547,2]
[388753303,1759348257103,-500.0,0.00020547,2]
[388753304,1759348257113,-500.0,0.00020547,2]
[388753305,1759348257122,-913.55,0.00020547,2]
[388753306,1759348257131,-500.0,0.00020547,2]
[388753307,1759348257141,-500.0,0.00020547,2]
[388753308,1759348257150,-500.0,0.00020547,2]
[388753309,1759348257160,-510.51,0.00020547,2]
[388753310,1759348257170,-500.0,0.00020547,2]
[388753311,1759348257179,-500.0,0.00020547,2]
[388753312,1759348257189,-500.0,0.00020547,2]
[388753313,1759348257199,-500.0,0.00020547,2]
[388753314,1759348257208,-500.0,0.00020547,2]
[388753315,1759348257217,-500.0,0.00020547,2]
[388753316,1759348257227,-380.0,0.00020547,2]
[388753317,1759348257236,-500.0,0.00020547,2]
[388753318,1759348257245,-500.0,0.00020547,2]
[388753319,1759348257254,-781.46,0.00020547,2]
[388753320,1759348257263,-500.0,0.00020547,2]
[388753321,1759348257272,-500.0,0.00020547,2]
[388753322,1759348257281,-834.52,0.00020547,2]
[388753323,1759348257291,-500.0,0.00020547,2]
[388753324,1759348257300,-500.0,0.00020547,2]
[388753325,1759348257309,-500.0,0.00020547,2]
[388753326,1759348257318,-433.47822185,0.00020547,2]
[388753327,1759348257327,-612.5359093,0.00020547,2]
[388753328,1759348257337,-500.0,0.00020547,2]
[388753329,1759348257350,-362.78913804,0.00020547,2]
[388753330,1759348257359,-500.0,0.00020547,2]
[388753331,1759348257369,-500.0,0.00020547,2]
[388753332,1759348257383,-500.0,0.00020547,2]
[388753333,1759348257393,-500.0,0.00020547,2]
[388753334,1759348257403,-500.0,0.00020547,2]
[388753335,1759348257412,-500.0,0.00020547,2]
[388753336,1759348257422,-500.0,0.00020547,2]
[388753337,1759348257432,-500.0,0.00020547,2]
[388753338,1759348257441,-500.0,0.00020547,2]
[388753339,1759348257451,-817.94,0.00020547,2]
[388753340,1759348257460,-500.0,0.00020547,2]
[388753341,1759348257469,-500.0,0.00020547,2]
[388753342,1759348257479,-500.0,0.00020547,2]
[388753343,1759348257488,-1197.27,0.00020547,2]
[388753344,1759348257497,-1072.82,0.00020547,2]
[388753345,1759348257506,-590.06,0.00020547,2]
[388753346,1759348257515,-500.0,0.00020547,2]
[388753347,1759348257524,-1043.95,0.00020547,2]
[388753348,1759348257535,-463.89373646,0.00020547,2]
[388753349,1759348257544,-500.0,0.00020547,2]
[388753350,1759348257553,-500.0,0.00020547,2]
[388753351,1759348257563,-500.0,0.00020547,2]
[388753352,1759348257572,-485.61,0.00020547,2]
[388753353,1759348257580,-500.0,0.00020547,2]
[388753354,1759348257591,-500.0,0.00020547,2]
[388753355,1759348257600,-500.0,0.00020547,2]
[388753356,1759348257609,-996.21,0.00020547,2]
[388753357,1759348257619,-500.0,0.00020547,2]
[388753358,1759348257628,-500.0,0.00020547,2]
[388753359,1759348257637,-576.82,0.00020547,2]
[388753360,1759348257647,-500.0,0.00020547,2]
[388753361,1759348257656,-500.0,0.00020547,2]
[388753362,1759348257665,-500.0,0.00020547,2]
[388753363,1759348257674,-2174.11,0.00020547,2]
[388753364,1759348257683,-220.68327672,0.00020547,2]
[388753365,1759348257692,-500.0,0.00020547,2]
[388753366,1759348257702,-1689.91,0.00020547,2]
[388753367,1759348257711,-500.0,0.00020547,2]
[388753368,1759348257720,-500.0,0.00020547,2]
[388753369,1759348257730,-500.0,0.00020547,2]
[388753370,1759348257739,-500.0,0.00020547,2]
[388753371,1759348257748,-500.0,0.00020547,2]
[388753372,1759348257757,-500.0,0.00020547,2]
[388753373,1759348257766,-500.0,0.00020547,2]
[388753374,1759348257775,-4256.27,0.00020547,2]
[388753375,1759348257787,-500.0,0.00020547,2]
[388753376,1759348257797,-500.0,0.00020547,2]
[388753377,1759348257805,-500.0,0.00020547,2]
[388753378,1759348257815,-500.0,0.00020547,2]
[388753379,1759348257824,-500.0,0.00020547,2]
[388753380,1759348257834,-500.0,0.00020547,2]
[388753381,1759348257843,-500.0,0.00020547,2]
[388753382,1759348257853,-500.0,0.00020547,2]
[388753383,1759348257862,-420.0,0.00020547,2]
[388753384,1759348257872,-500.0,0.00020547,2]
[388753385,1759348257881,-478.83,0.00020547,2]
[388753386,1759348257890,-500.0,0.00020547,2]
[388753387,1759348257981,-956.54,0.00020547,2]
[388753388,1759348257991,-500.0,0.00020547,2]
[388753389,1759348258004,-500.0,0.00020547,2]
[388753390,1759348258014,-500.0,0.00020547,2]
[388753391,1759348258023,-500.0,0.00020547,2]
[388753392,1759348258034,-1404.42,0.00020547,2]
[388753393,1759348258044,-500.0,0.00020547,2]
[388753394,1759348258053,-500.0,0.00020547,2]
[388753395,1759348258062,-198.59536996,0.00020547,2]
[388753396,1759348258071,-872.07,0.00020547,2]
[388753397,1759348258084,-500.0,0.00020547,2]
[388753398,1759348258093,-500.0,0.00020547,2]
[388753399,1759348258102,-500.0,0.00020547,2]
[388753400,1759348258112,-974.89,0.00020547,2]
[388753401,1759348258121,-732.65,0.00020547,2]
[388753402,1759348258131,-812.54,0.00020547,2]
[388753403,1759348258140,-500.0,0.00020547,2]
[388753404,1759348258149,-500.0,0.00020547,2]
[388753405,1759348258158,-629.04,0.00020547,2]
[388753406,1759348258167,-500.0,0.00020547,2]
[388753407,1759348258177,-500.0,0.00020547,2]
[388753408,1759348258186,-546.41,0.00020547,2]
[388753409,1759348258195,-500.0,0.00020547,2]
[388753410,1759348258204,-500.0,0.00020547,2]
[388753411,1759348258214,-500.0,0.00020547,2]
[388753412,1759348258223,-500.0,0.00020547,2]
[388753413,1759348258233,-500.0,0.00020547,2]
[388753414,1759348258242,-500.0,0.00020547,2]
[388753415,1759348258251,-501.68,0.00020547,2]
[388753416,1759348258260,-450.55,0.00020547,2]
[388753417,1759348258269,-502.83,0.00020547,2]
[388753418,1759348258278,-500.0,0.00020547,2]
[388753419,1759348258289,-500.0,0.00020547,2]
[388753420,1759348258298,-500.0,0.00020547,2]
[388753421,1759348258307,-1277.46,0.00020547,2]
[388753422,1759348258317,-440.0,0.00020547,2]
[388753423,1759348258326,-399.42835277,0.00020547,2]
[388753424,1759348258336,-552.96,0.00020547,2]
[388753425,1759348258345,-500.0,0.00020547,2]
[388753426,1759348258354,-500.0,0.00020547,2]
[388753427,1759348258364,-172.11444338,0.00020547,2]
[388753428,1759348258374,-500.0,0.00020547,2]
[388753429,1759348258383,-500.0,0.00020547,2]
[388753430,1759348258392,-500.0,0.00020547,2]
[388753431,1759348258402,-500.0,0.00020547,2]
[388753432,1759348258410,-500.0,0.00020547,2]
[388753433,1759348258420,-500.0,0.00020547,2]
[388753434,1759348258430,-2223.37,0.00020547,2]
[388753435,1759348258439,-500.0,0.00020547,2]
[388753436,1759348258448,-500.0,0.00020547,2]
[388753437,1759348258457,-698.72,0.00020547,2]
[388753438,1759348258466,-500.0,0.00020547,2]
[388753439,1759348258475,-303.72223899,0.00020547,2]
[388753440,1759348258484,-813.06,0.00020547,2]
[388753441,1759348258493,-725.57,0.00020547,2]
[388753442,1759348258502,-677.05,0.00020547,2]
[388753443,1759348258512,-480.0,0.00020547,2]
[388753444,1759348258521,-500.0,0.00020547,2]
[388753445,1759348258532,-500.0,0.00020547,2]
[388753446,1759348258541,-420.0,0.00020547,2]
[388753447,1759348258551,-500.0,0.00020547,2]
[388753448,1759348258560,-500.0,0.00020547,2]
[388753449,1759348258569,-2312.62,0.00020547,2]
[388753450,1759348258578,-500.0,0.00020547,2]
[388753451,1759348258587,-500.0,0.00020547,2]
[388753452,1759348258596,-500.0,0.00020547,2]
[388753453,1759348258606,-500.0,0.00020547,2]
[388753454,1759348258615,-500.0,0.00020547,2]
[388753455,1759348258625,-500.0,0.00020547,2]
[388753456,1759348258635,-500.0,0.00020547,2]
[388753457,1759348258644,-500.0,0.00020547,2]
[388753458,1759348258654,-791.91,0.00020547,2]
[388753459,1759348258664,-500.0,0.00020547,2]
[388753460,1759348258673,-1388.66,0.00020547,2]
[388753461,1759348258683,-1140.33,0.00020547,2]
[388753462,1759348258692,-500.0,0.00020547,2]
[388753463,1759348258702,-500.0,0.00020547,2]
[388753464,1759348258711,-578.18,0.00020547,2]
[388753465,1759348258721,-500.0,0.00020547,2]
[388753466,1759348258730,-612.44,0.00020547,2]
[388753467,1759348258740,-245.0,0.00020548,2]
[388753468,1759348258749,-245.0,0.00020548,2]
[388753469,1759348258759,-458.0,0.00020548,2]
[388753470,1759348258768,-245.0,0.00020548,2]
[388753471,1759348258777,-500.0,0.00020548,2]